fUST/lending_fUST_20250113
["ID","MTS","AMOUNT","RATE_DAILY","PERIOD"]
[348760967,1736775035581,-500.0,0.00019178,2]
[348760969,1736775035598,-500.0,0.00019178,2]
[348760972,1736775035613,-500.0,0.00019178,2]
[348760974,1736775035623,-237.69913677,0.00019178,2]
[348760976,1736775035636,-262.30086323,0.00019178,2]
[348760978,1736775035646,-154.85,0.00019178,2]
[348760980,1736775035656,-500.0,0.00019452,3]
[348760982,1736775035665,-500.0,0.00019452,3]
[348760985,1736775035678,-500.0,0.00019452,3]
[348760987,1736775035688,-783.87,0.00019452,2]
[348760989,1736775035699,-500.0,0.00019452,3]
[348760991,1736775035709,-500.0,0.00019452,3]
[348760993,1736775035719,-500.0,0.00019452,3]
[348760995,1736775035730,-592.27773811,0.00019452,3]
[348760997,1736775035745,-500.0,0.00019452,3]
[348760999,1736775035755,-500.0,0.00019452,3]
[348761001,1736775035765,-417.186809,0.00019505,2]
[348761003,1736775035776,-500.0,0.00019508,2]
[348761005,1736775035786,-500.0,0.00019725,3]
[348761007,1736775035796,-500.0,0.00019726,3]
[348761009,1736775035806,-500.0,0.00019726,3]
[348761011,1736775035816,-783.87,0.00019726,2]
[348761013,1736775035827,-500.0,0.00019726,3]
[348761016,1736775035837,-172.12,0.00019799,3]
[348761017,1736775035846,-500.0,0.000198,2]
[348761020,1736775035856,-152.0,0.00019986,2]
[348761022,1736775035867,-500.0,0.00019999,3]
[348761024,1736775035877,-500.0,0.00019999,3]
[348761026,1736775035887,-500.0,0.00019999,3]
[348761028,1736775035897,-1294.41,0.00019999,3]
[348761030,1736775035907,-500.0,0.00019999,3]
[348761032,1736775035916,-473.05925283,0.00019999,3]
[348761034,1736775035930,-500.0,0.00019999,3]
[348761036,1736775035940,-500.0,0.00019999,3]
[348761038,1736775035949,-500.0,0.00019999,2]
[348761040,1736775035959,-500.0,0.00019999,2]
[348761042,1736775035969,-601.33781465,0.00019999,2]
[348761044,1736775035979,-500.0,0.00019999,2]
[348761046,1736775035990,-500.0,0.00019999,2]
[348761048,1736775035999,-500.0,0.00019999,2]
[348761050,1736775036009,-189.39374998,0.00019999,2]
[348761052,1736775036019,-500.0,0.00019999,2]
[348761054,1736775036029,-500.0,0.00019999,2]
[348761056,1736775036039,-500.0,0.00019999,2]
[348761058,1736775036048,-420.33756877,0.00019999,2]
[348761060,1736775036058,-500.0,0.00019999,2]
[348761062,1736775036067,-500.0,0.00019999,2]
[348761064,1736775036077,-500.0,0.00019999,2]
[348761066,1736775036087,-500.0,0.00019999,2]
[348761068,1736775036096,-500.0,0.00019999,2]
[348761070,1736775036106,-500.0,0.00019999,2]
[348761072,1736775036116,-458.19055225,0.00019999,2]
[348761074,1736775036125,-500.0,0.00019999,2]
[348761076,1736775036135,-500.0,0.00019999,2]
[348761078,1736775036144,-500.0,0.00019999,2]
[348761080,1736775036153,-500.0,0.00019999,2]
[348761082,1736775036163,-500.0,0.00019999,2]
[348761084,1736775036173,-500.0,0.00019999,2]
[348761086,1736775036186,-500.0,0.00019999,2]
[348761088,1736775036196,-500.0,0.00019999,2]
[348761090,1736775036205,-500.0,0.00019999,2]
[348761092,1736775036214,-500.0,0.00019999,2]
[348761094,1736775036224,-500.0,0.00019999,2]
[348761096,1736775036233,-500.0,0.00019999,2]
[348761098,1736775036242,-500.0,0.00019999,2]
[348761100,1736775036252,-500.0,0.00019999,2]
[348761102,1736775036262,-500.0,0.00019999,2]
[348761105,1736775036273,-500.0,0.00019999,2]
[348761106,1736775036282,-500.0,0.00019999,2]
[348761109,1736775036291,-500.0,0.00019999,2]
[348761111,1736775036300,-500.0,0.00019999,2]
[348761112,1736775036310,-500.0,0.00019999,2]
[348761115,1736775036320,-500.0,0.00019999,2]
[348761117,1736775036330,-500.0,0.00019999,2]
[348761119,1736775036339,-500.0,0.00019999,2]
[348761121,1736775036349,-400.0,0.00019999,2]
[348761123,1736775036358,-500.0,0.00019999,2]
[348761125,1736775036368,-500.0,0.00019999,2]
[348761127,1736775036377,-500.0,0.00019999,2]
[348761129,1736775036389,-500.0,0.00019999,2]
[348761131,1736775036398,-500.0,0.00019999,2]
[348761133,1736775036408,-500.0,0.00019999,2]
[348761135,1736775036418,-500.0,0.00019999,2]
[348761137,1736775036430,-500.0,0.00019999,2]
[348761139,1736775036439,-500.0,0.00019999,2]
[348761141,1736775036453,-500.0,0.00019999,2]
[348761144,1736775036463,-19252.19234365,0.0002,5]
[348761146,1736775036473,-11566.37951276,0.0002,5]
[348761148,1736775036483,-500.0,0.0002,3]
[348761150,1736775036494,-500.0,0.0002,3]
[348761152,1736775036504,-783.87,0.0002,2]
[348761154,1736775036513,-500.0,0.0002,3]
[348761156,1736775036523,-675823.22538225,0.0002,5]
[348761158,1736775036537,-23976.88383229,0.0002,5]
[348761160,1736775036549,-31971.17349038,0.0002,5]
[348761163,1736775036561,-19699.73393649,0.0002,5]
[348761165,1736775036573,-471746.68148273,0.0002,5]
[348761167,1736775036583,-178.52009132,0.0002,2]
[348761169,1736775036593,-6074.80216139,0.0002,2]
[348761171,1736775036605,-4250.13783861,0.0002,2]
[348761173,1736775036617,-439.37,0.000201,2]
[348761175,1736775036627,-500.0,0.00020272,3]
[348761178,1736775036637,-500.0,0.00020272,3]
[348761180,1736775036647,-500.0,0.00020272,3]
[348761182,1736775036657,-600.03,0.00020272,3]
[348761184,1736775036667,-500.0,0.00020273,3]
[348761186,1736775036679,-500.0,0.00020273,3]
[348761188,1736775036689,-500.0,0.00020273,3]
[348761190,1736775036698,-783.87,0.00020273,2]
[348761192,1736775036708,-500.0,0.00020273,3]
[348761194,1736775036717,-1294.41,0.00020273,3]
[348761196,1736775036727,-500.0,0.00020273,3]
[348761198,1736775036739,-500.0,0.00020273,3]
[348761200,1736775036750,-500.0,0.00020273,3]
[348761202,1736775036760,-162.641103,0.00020447,2]
[348761204,1736775036770,-179.548681,0.00020521,2]
[348761206,1736775036781,-500.0,0.00020546,3]
[348761208,1736775036791,-500.0,0.00020546,3]
[348761210,1736775036800,-600.03,0.00020546,3]
[348761212,1736775036810,-500.0,0.00020547,2]
[348761214,1736775036820,-500.0,0.00020547,3]
[348761216,1736775036830,-189.554,0.00020547,2]
[348761218,1736775036840,-500.0,0.00020547,3]
[348761220,1736775036850,-783.87,0.00020547,2]
[348761222,1736775036860,-500.0,0.00020547,3]
[348761224,1736775036869,-500.0,0.00020547,3]
[348761226,1736775036880,-500.0,0.00020547,3]
[348761228,1736775036889,-500.0,0.00020547,3]
[348761230,1736775036899,-1294.41,0.00020547,3]
[348761232,1736775036909,-500.0,0.0002082,3]
[348761233,1736775036919,-500.0,0.00020821,3]
[348761234,1736775036932,-500.0,0.00020821,3]
[348761235,1736775036941,-783.87,0.00020821,2]
[348761236,1736775036952,-1294.41,0.00020821,3]
[348761237,1736775036962,-466.56275408,0.00020868,2]
[348761238,1736775036972,-371.57990096,0.000209,2]
[348761239,1736775036982,-371.57990087,0.00021003,2]
[348761240,1736775036992,-500.0,0.00021094,3]
[348761241,1736775037003,-500.0,0.00021095,3]
[348761242,1736775037013,-500.0,0.00021095,3]
[348761243,1736775037022,-783.87,0.00021095,2]
[348761244,1736775037031,-1294.41,0.00021095,3]
[348761245,1736775037041,-371.57990087,0.00021107,2]
[348761246,1736775037050,-371.57990087,0.0002121,2]
[348761247,1736775037060,-371.57990087,0.00021314,2]
[348761248,1736775037070,-151.0,0.00021355,2]
[348761249,1736775037080,-500.0,0.00021368,3]
[348761250,1736775037090,-500.0,0.00021369,3]
[348761251,1736775037100,-500.0,0.00021369,3]
[348761252,1736775037109,-783.87,0.00021369,2]
[348761253,1736775037119,-1294.41,0.00021369,3]
[348761254,1736775037129,-371.57990087,0.00021417,2]
[348761255,1736775037139,-371.57990087,0.00021521,2]
[348761256,1736775037148,-371.57990087,0.00021624,2]
[348761262,1736775037271,-500.0,0.0002164,2]
[348761263,1736775037284,-500.0,0.0002164,2]
[348761264,1736775037294,-509.36238768,0.0002164,2]
[348761265,1736775037304,-398.24,0.00021642,3]
[348761266,1736775037313,-500.0,0.00021643,3]
[348761267,1736775037323,-500.0,0.00021643,3]
[348761268,1736775037333,-783.87,0.00021643,2]
[348761269,1736775037342,-1294.41,0.00021643,3]
[348761271,1736775037351,-499.999999,0.00021688,2]
[348761273,1736775037361,-371.57990087,0.00021728,2]
[348761275,1736775037370,-371.57990087,0.00021831,2]
[348761277,1736775037380,-221.5725711,0.00021899,2]
[348761279,1736775037390,-8134.09846415,0.000219,2]
[348761281,1736775037399,-465.0781377,0.00021912,2]
[348761283,1736775037410,-500.0,0.00021917,3]
[348761285,1736775037419,-500.0,0.00021917,3]
[348761287,1736775037431,-783.87,0.00021917,2]
[348761289,1736775037442,-1294.41,0.00021917,3]
[348761291,1736775037452,-371.57990087,0.00021934,2]
[348761293,1736775037462,-1361.74727264,0.00022,2]
[348761321,1736775037711,-600.03,0.0002082,3]
[348761323,1736775037721,-600.03,0.00021094,3]
[348761325,1736775037732,-13587.22598694,0.00022,2]
[348761327,1736775037745,-14020.66202246,0.00022,2]
[348761329,1736775037755,-371.57990087,0.00022038,2]
[348761331,1736775037764,-179.548681,0.00022055,2]
[348761333,1736775037773,-371.57990087,0.00022141,2]
[348761335,1736775037784,-500.0,0.00022191,3]
[348761337,1736775037793,-500.0,0.00022191,3]
[348761339,1736775037802,-783.87,0.00022191,2]
[348761341,1736775037813,-1294.41,0.00022191,3]
[348761343,1736775037823,-371.57990087,0.00022245,2]
[348761345,1736775037832,-10324.94,0.000223,2]
[348761347,1736775037841,-371.57990087,0.00022348,2]
[348761349,1736775037850,-515.592,0.0002245,2]
[348761351,1736775037859,-371.57990087,0.00022452,2]
[348761353,1736775037869,-500.0,0.00022465,3]
[348761355,1736775037878,-418.45,0.00022465,3]
[348761357,1736775037887,-783.87,0.00022465,2]
[348761359,1736775037897,-1294.41,0.00022465,3]
[348761361,1736775037907,-371.57990087,0.00022555,2]
[348761363,1736775037916,-500.0,0.00022631,2]
[348761365,1736775037928,-371.57990087,0.00022659,2]
[348761369,1736775037937,-395.0,0.00022709,2]
[348761372,1736775037946,-500.0,0.00022739,3]
[348761375,1736775037956,-783.87,0.00022739,2]
[348761378,1736775037966,-1294.41,0.00022739,3]
[348761381,1736775037975,-371.57990087,0.00022762,2]
[348761384,1736775037985,-371.57990087,0.00022866,2]
[348761387,1736775037995,-54158.11816374,0.0002287,2]
[348761390,1736775038005,-10000.0,0.0002289,5]
[348761393,1736775038015,-371.57990087,0.00022969,2]
[348761396,1736775038025,-7438.69753278,0.00023,3]
[348761400,1736775038036,-7403.45833297,0.00023,2]
[348761402,1736775038046,-500.0,0.00023013,3]
[348761406,1736775038056,-783.87,0.00023013,2]
[348761407,1736775038066,-1294.41,0.00023013,3]
[348761410,1736775038077,-309.2590886,0.00023068,2]
[348761412,1736775038087,-371.57990087,0.00023072,2]
[348761414,1736775038097,-371.57990087,0.00023176,2]
[348761416,1736775038107,-371.57990087,0.00023279,2]
[348761418,1736775038116,-500.0,0.00023287,3]
[348761419,1736775038126,-783.87,0.00023287,2]
[348761421,1736775038137,-1294.41,0.00023287,3]
[348761423,1736775038147,-1000.0,0.00023375,2]
[348761425,1736775038156,-371.57990087,0.00023383,2]
[348761427,1736775038166,-212.2556853,0.0002339,2]
[348761429,1736775038179,-1000.0,0.00023486,2]
[348761431,1736775038188,-371.57990087,0.00023486,2]
[348761433,1736775038198,-178.58,0.00023516,2]
[348761435,1736775038208,-500.0,0.00023561,3]
[348761437,1736775038217,-783.87,0.00023561,2]
[348761439,1736775038226,-1294.41,0.00023561,3]
[348761441,1736775038235,-371.57990087,0.0002359,2]
[348761443,1736775038245,-151.0,0.000236,9]
[348761445,1736775038255,-151.0,0.000236,10]
[348761447,1736775038264,-62668.47204012,0.0002362,15]
[348761449,1736775038273,-275.0,0.0002362,11]
[348761451,1736775038283,-151.0,0.00023625,7]
[348761453,1736775038293,-151.0,0.00023625,7]
[348761455,1736775038303,-151.0,0.00023625,7]
[348761457,1736775038312,-151.0,0.00023625,7]
[348761459,1736775038321,-151.0,0.00023625,7]
[348761461,1736775038331,-151.0,0.00023625,7]
[348761463,1736775038342,-151.0,0.00023625,2]
[348761465,1736775038352,-151.0,0.00023628,7]
[348761467,1736775038361,-151.0,0.00023628,7]
[348761469,1736775038371,-151.0,0.00023628,7]
[348761471,1736775038380,-151.0,0.00023628,7]
[348761473,1736775038390,-151.0,0.00023628,7]
[348761475,1736775038399,-151.0,0.00023628,7]
[348761477,1736775038408,-257.632826,0.00023628,7]
[348761479,1736775038418,-150.24,0.00023628,10]
[348761481,1736775038429,-243.15670521,0.00023628,10]
[348761483,1736775038439,-150.24,0.00023628,10]
[348761485,1736775038448,-199.58,0.00023628,10]
[348761487,1736775038457,-150.24,0.00023628,10]
[348761489,1736775038467,-500.0,0.00023628,10]
[348761491,1736775038476,-150.24,0.00023628,2]
[348761493,1736775038485,-150.24,0.00023628,10]
[348761495,1736775038494,-500.0,0.00023628,10]
[348761497,1736775038503,-150.24,0.00023628,10]
[348761499,1736775038513,-151.0,0.00023642,7]
[348761501,1736775038522,-151.0,0.00023642,7]
[348761503,1736775038532,-151.0,0.00023642,7]
[348761505,1736775038541,-291.981212,0.00023642,7]
[348761507,1736775038550,-506455.29670971,0.00023642,10]
[348761509,1736775038562,-14847.748,0.00023642,10]
[348761511,1736775038574,-464.18759919,0.00023642,10]
[348761770,1736775041045,-151.42105372,0.00023642,10]
[348761774,1736775041075,-500.0,0.00019178,2]
[348761776,1736775041084,-600.03,0.00021368,3]
[348761778,1736775041093,-5.81,0.00021642,3]
[348761780,1736775041105,-594.22,0.00021642,3]
[348761782,1736775041115,-600.03,0.00021916,3]
[348761784,1736775041124,-2228.29663607,0.00023642,10]
[348761787,1736775041140,-600.03,0.0002219,3]
[348761789,1736775041151,-6566.35916321,0.00023642,10]
[348762018,1736775042792,-449.72970781,0.00019999,3]
[348762025,1736775042852,-50.27029219,0.00019999,3]
[348762028,1736775042862,-600.03,0.00022464,3]
[348762030,1736775042871,-600.03,0.00022738,3]
[348762032,1736775042881,-600.03,0.00023012,3]
[348762034,1736775042890,-166818.65550559,0.00023642,10]
[348763421,1736775057463,300.0,0.00025,120]
[348764487,1736775248139,184.0,0.00025,120]
[348764489,1736775325913,164.17953,0.00013973,2]
[348764497,1736776034132,-184.87650289,0.00018723,2]
[348764498,1736776041123,-109.71349711,0.00018723,2]
[348764499,1736776041280,-300.0,0.00018732,2]
[348764500,1736776041305,-5326.44352998,0.00018733,2]
[348764518,1736776145206,-300.0,0.00018732,2]
[348764519,1736776145231,-19573.55647002,0.00018733,2]
[348764520,1736776145254,-600.0,0.00019,2]
[348764521,1736776145276,-4471.92769707,0.00019078,2]
[348764522,1736776145299,-154.32,0.00019177,2]
[348764523,1736776145324,-500.0,0.00019177,2]
[348764524,1736776145348,-500.0,0.00019177,2]
[348764525,1736776145373,-500.0,0.00019177,2]
[348764526,1736776145397,-500.0,0.00019177,2]
[348764527,1736776145422,-500.0,0.00019177,2]
[348764528,1736776145447,-515.50049397,0.00019177,2]
[348764529,1736776145474,-500.0,0.00019177,2]
[348764530,1736776145498,-500.0,0.00019177,2]
[348764531,1736776145522,-500.0,0.00019177,2]
[348764532,1736776145545,-500.0,0.00019177,2]
[348764533,1736776145568,-500.0,0.00019177,2]
[348764534,1736776145592,-500.0,0.00019177,2]
[348764535,1736776145615,-500.0,0.00019177,2]
[348764536,1736776145639,-500.0,0.00019177,2]
[348764537,1736776145663,-500.0,0.00019177,2]
[348764538,1736776145685,-535.03773127,0.00019177,2]
[348764539,1736776145711,-500.0,0.00019177,2]
[348764540,1736776145735,-500.0,0.00019177,2]
[348764541,1736776145758,-500.0,0.00019177,2]
[348764542,1736776145782,-500.0,0.00019177,2]
[348764543,1736776145806,-500.0,0.00019177,2]
[348764544,1736776145828,-500.0,0.00019177,2]
[348764545,1736776145851,-500.0,0.00019177,2]
[348764546,1736776145874,-500.0,0.00019177,2]
[348764547,1736776145896,-500.0,0.00019177,2]
[348764548,1736776145920,-500.0,0.00019177,2]
[348764549,1736776145944,-500.0,0.00019177,2]
[348764550,1736776145974,-500.0,0.00019177,2]
[348764551,1736776145999,-500.0,0.00019177,2]
[348764552,1736776146026,-500.0,0.00019177,2]
[348764553,1736776146052,-462.25583005,0.00019177,2]
[348764554,1736776146079,-500.0,0.00019177,2]
[348764555,1736776146104,-500.0,0.00019177,2]
[348764556,1736776146130,-500.0,0.00019177,2]
[348764557,1736776146154,-500.0,0.00019177,2]
[348764558,1736776146178,-500.0,0.00019177,2]
[348764559,1736776146201,-500.0,0.00019177,2]
[348764560,1736776146229,-500.0,0.00019177,2]
[348764561,1736776146254,-500.0,0.00019177,2]
[348764562,1736776146278,-500.0,0.00019177,2]
[348764563,1736776146302,-500.0,0.00019177,2]
[348764564,1736776146326,-500.0,0.00019177,2]
[348764565,1736776146350,-500.0,0.00019177,2]
[348764566,1736776146375,-500.0,0.00019177,2]
[348764567,1736776146398,-500.0,0.00019177,2]
[348764568,1736776146419,-535.05973139,0.00019178,2]
[348764569,1736776146442,-574.51537497,0.00019178,2]
[348764570,1736776146467,-500.0,0.00019178,2]
[348764571,1736776146488,-500.0,0.00019178,2]
[348764572,1736776146510,-500.0,0.00019178,2]
[348764573,1736776146532,-500.0,0.00019178,2]
[348764574,1736776146556,-500.0,0.00019178,2]
[348764575,1736776146578,-500.0,0.00019178,2]
[348764576,1736776146599,-501.7526307,0.00019178,2]
[348764577,1736776146620,-500.0,0.00019178,2]
[348764578,1736776146747,-500.0,0.00019178,2]
[348764579,1736776146771,-500.0,0.00019178,2]
[348764580,1736776146793,-547.95129586,0.00019178,2]
[348764581,1736776146816,-500.0,0.00019178,2]
[348764582,1736776146839,-500.0,0.00019178,2]
[348764583,1736776146860,-500.0,0.00019178,2]
[348764584,1736776146882,-500.0,0.00019178,2]
[348764585,1736776146905,-500.0,0.00019178,2]
[348764586,1736776146929,-329.07882463,0.00019178,2]
[348764587,1736776146955,-500.0,0.00019178,2]
[348764588,1736776146978,-433.53532199,0.00019178,2]
[348764589,1736776147002,-466.28418491,0.00019178,2]
[348764590,1736776147024,-502.78210461,0.00019178,2]
[348764591,1736776147047,-500.0,0.00019178,2]
[348764592,1736776147073,-500.0,0.00019178,2]
[348764593,1736776147098,-571.46781153,0.00019178,2]
[348764594,1736776147124,-500.0,0.00019178,2]
[348764595,1736776147149,-500.0,0.00019178,2]
[348764596,1736776147172,-500.0,0.00019178,2]
[348764597,1736776147195,-500.0,0.00019178,7]
[348764598,1736776147224,-500.0,0.00019178,2]
[348764599,1736776147246,-500.0,0.00019178,2]
[348764600,1736776147269,-500.0,0.00019178,2]
[348764601,1736776147293,-500.0,0.00019178,2]
[348764602,1736776147316,-500.0,0.00019178,2]
[348764603,1736776147341,-500.0,0.00019178,2]
[348764604,1736776147370,-500.0,0.00019178,2]
[348764605,1736776147395,-500.0,0.00019178,2]
[348764606,1736776147420,-500.0,0.00019178,2]
[348764607,1736776147446,-500.0,0.00019178,2]
[348764608,1736776147474,-500.0,0.00019178,2]
[348764609,1736776147500,-500.0,0.00019178,2]
[348764610,1736776147523,-500.0,0.00019178,2]
[348764611,1736776147550,-500.0,0.00019178,2]
[348764612,1736776147576,-500.0,0.00019178,2]
[348764613,1736776147599,-500.0,0.00019178,2]
[348764614,1736776147622,-500.0,0.00019178,2]
[348764615,1736776147646,-500.0,0.00019178,2]
[348764616,1736776147669,-500.0,0.00019178,2]
[348764617,1736776147692,-500.0,0.00019178,2]
[348764618,1736776147718,-500.0,0.00019178,2]
[348764619,1736776147742,-462.12855546,0.00019178,2]
[348764620,1736776147764,-500.0,0.00019178,2]
[348764621,1736776147786,-500.0,0.00019178,2]
[348764622,1736776147808,-439.87537863,0.00019178,2]
[348764623,1736776147830,-500.0,0.00019178,2]
[348764624,1736776147854,-510.09928644,0.00019178,2]
[348764625,1736776147876,-500.0,0.00019178,2]
[348764626,1736776147898,-500.0,0.00019178,2]
[348764627,1736776147920,-500.0,0.00019178,2]
[348764628,1736776147942,-599.61665026,0.00019178,2]
[348764629,1736776147967,-500.0,0.00019178,2]
[348764630,1736776147988,-503.75231007,0.00019178,2]
[348764631,1736776148009,-500.0,0.00019178,2]
[348764632,1736776148031,-501.21813842,0.00019178,2]
[348764633,1736776148053,-500.0,0.00019178,2]
[348764634,1736776148079,-500.0,0.00019178,2]
[348764635,1736776148103,-500.0,0.00019178,2]
[348764636,1736776148129,-500.0,0.00019178,2]
[348764637,1736776148153,-500.0,0.00019178,2]
[348764638,1736776148177,-500.0,0.00019178,2]
[348764639,1736776148200,-320.04945969,0.00019178,2]
[348764640,1736776148240,-179.95054031,0.00019178,2]
[348764641,1736776148264,-500.0,0.00019178,2]
[348764642,1736776148285,-500.0,0.00019178,2]
[348764643,1736776148305,-204.6799111,0.00019178,2]
[348764644,1736776148326,-504.7512836,0.00019178,2]
[348764645,1736776148349,-500.0,0.00019178,2]
[348764646,1736776148373,-500.0,0.00019178,2]
[348764647,1736776148397,-500.0,0.00019178,2]
[348764648,1736776148418,-504.19317431,0.00019178,2]
[348764649,1736776148438,-500.0,0.00019178,2]
[348764650,1736776148461,-504.55567194,0.00019178,2]
[348764651,1736776148485,-500.0,0.00019178,2]
[348764652,1736776148506,-360.48164965,0.00019178,2]
[348764657,1736776208213,164.17953,0.00013973,2]
[348764712,1736776237892,-335.32926748,0.000189,2]
[348764714,1736776237902,-300.0,0.00019177,2]
[348764716,1736776237911,-141.57266012,0.00019178,2]
[348764718,1736776237921,-500.0,0.00019178,2]
[348764720,1736776237930,-500.0,0.00019178,2]
[348764722,1736776237940,-500.0,0.00019178,2]
[348764724,1736776237950,-502.37473036,0.00019178,2]
[348764725,1736776237960,-500.0,0.00019178,2]
[348764726,1736776237970,-500.0,0.00019178,2]
[348764727,1736776237979,-512.81472607,0.00019178,2]
[348764728,1736776237990,-500.0,0.00019178,2]
[348764729,1736776238000,-500.0,0.00019178,2]
[348764730,1736776238010,-500.0,0.00019178,2]
[348764731,1736776238020,-544.1,0.00019178,2]
[348764732,1736776238033,-500.0,0.00019178,2]
[348764733,1736776238044,-511.45311852,0.00019178,2]
[348764734,1736776238054,-504.62295685,0.00019178,2]
[348764735,1736776238065,-500.0,0.00019178,2]
[348764736,1736776238075,-862.97,0.00019178,2]
[348764737,1736776238085,-500.0,0.00019178,2]
[348764738,1736776238095,-507.31671329,0.00019178,2]
[348764739,1736776238108,-1002.13,0.00019178,2]
[348764740,1736776238118,-500.0,0.00019178,2]
[348764741,1736776238127,-500.0,0.00019178,2]
[348764742,1736776238138,-500.0,0.00019178,2]
[348764743,1736776238148,-500.0,0.00019178,2]
[348764744,1736776238157,-500.0,0.00019178,2]
[348764745,1736776238167,-500.0,0.00019178,2]
[348764746,1736776238179,-519.60782419,0.00019178,2]
[348764747,1736776238189,-548.36909111,0.00019178,2]
[348764749,1736776238200,-500.0,0.00019178,2]
[348764751,1736776238210,-355.40546766,0.00019178,2]
[348764754,1736776238221,-500.0,0.00019178,2]
[348764756,1736776238230,-500.0,0.00019178,2]
[348764758,1736776238240,-500.0,0.00019178,2]
[348764760,1736776238249,-500.0,0.00019178,2]
[348764762,1736776238259,-500.0,0.00019178,2]
[348764764,1736776238269,-500.0,0.00019178,2]
[348764765,1736776238278,-500.0,0.00019178,2]
[348764767,1736776238288,-500.0,0.00019178,2]
[348764770,1736776238298,-500.0,0.00019178,2]
[348764772,1736776238307,-500.04199101,0.00019178,2]
[348764774,1736776238317,-500.0,0.00019178,2]
[348764775,1736776238327,-500.0,0.00019178,2]
[348764778,1736776238337,-500.0,0.00019178,2]
[348764780,1736776238347,-500.0,0.00019178,2]
[348764782,1736776238356,-500.0,0.00019178,2]
[348764784,1736776238367,-500.0,0.00019178,2]
[348764786,1736776238376,-500.0,0.00019178,2]
[348764787,1736776238385,-500.0,0.00019178,2]
[348764790,1736776238395,-500.0,0.00019178,2]
[348764792,1736776238405,-337.201422,0.00019178,2]
[348764794,1736776238415,-508.40730263,0.00019178,2]
[348764795,1736776238424,-596.65268338,0.00019178,2]
[348764798,1736776238434,-500.0,0.00019178,2]
[348764799,1736776238444,-500.0,0.00019178,2]
[348764801,1736776238454,-500.0,0.00019178,2]
[348764804,1736776238464,-500.0,0.00019178,2]
[348764806,1736776238473,-500.0,0.00019178,2]
[348764808,1736776238482,-353.74800741,0.00019178,2]
[348764810,1736776238492,-500.0,0.00019178,2]
[348764812,1736776238501,-500.0,0.00019178,2]
[348764814,1736776238511,-565.65013374,0.00019178,2]
[348764816,1736776238520,-500.0,0.00019178,2]
[348764817,1736776238530,-500.0,0.00019178,2]
[348764820,1736776238539,-500.0,0.00019178,2]
[348764821,1736776238549,-500.0,0.00019178,2]
[348764823,1736776238558,-645.60074287,0.00019178,2]
[348764826,1736776238568,-639.32927632,0.00019178,2]
[348764828,1736776238578,-500.0,0.00019178,2]
[348764830,1736776238588,-500.0,0.00019178,2]
[348764832,1736776238597,-320.09970471,0.00019178,2]
[348764834,1736776238607,-500.0,0.00019178,2]
[348764835,1736776238617,-500.0,0.00019178,2]
[348764837,1736776238627,-500.0,0.00019178,2]
[348764839,1736776238636,-2045.0,0.00019178,2]
[348764842,1736776238646,-500.0,0.00019178,2]
[348764843,1736776238656,-500.0,0.00019178,2]
[348764845,1736776238666,-628.72724887,0.00019178,2]